fUSD/lending_fUSD_20240910
["ID","MTS","AMOUNT","RATE_DAILY","PERIOD"]
[337734138,1725994230808,150.0,0.00018608,120]
[337734177,1725994237692,-150.65,0.000122,2]
[337734179,1725994237702,-155.14482605,0.00012493,2]
[337734180,1725994237711,-309.56,0.000125,2]
[337734181,1725994237720,-1000.78,0.000125,2]
[337734182,1725994237730,-155.14482605,0.00012548,2]
[337734183,1725994237740,-155.14482605,0.0001263,2]
[337734184,1725994237749,-155.14482605,0.00012685,2]
[337734185,1725994237758,-150.0,0.00012765,2]
[337734186,1725994237768,-150.0,0.00012767,2]
[337734188,1725994237777,-155.14482605,0.00012767,2]
[337734189,1725994237786,-542.06265,0.0001277,2]
[337734190,1725994237795,-150.0,0.00012782,2]
[337734191,1725994237805,-150.0,0.00012799,2]
[337734192,1725994237814,-300.0,0.00012799,2]
[337734193,1725994237824,-1317.31830251,0.000128,2]
[337734194,1725994237835,-1004.33090023,0.000128,2]
[337734195,1725994237847,-1257.43565756,0.000128,2]
[337734196,1725994237858,-3920.9151397,0.000128,2]
[337734197,1725994237868,-2500.0,0.000128,2]
[337734198,1725994237877,-1152.47772521,0.000128,2]
[337734199,1725994237886,-6815.04602315,0.000128,2]
[337734200,1725994237906,-9458.69461546,0.000128,2]
[337734201,1725994237915,-346.15597547,0.000128,2]
[337734202,1725994237924,-150.0,0.0001281,2]
[337734203,1725994237934,-150.0,0.00012811,2]
[337734204,1725994237946,-169.143,0.00012812,2]
[337734205,1725994237956,-810.0,0.00012812,2]
[337734206,1725994237967,-931.647,0.00012812,2]
[337734207,1725994237977,-680.741,0.00012812,2]
[337734208,1725994237988,-250.0,0.00012812,2]
[337734209,1725994237998,-150.0,0.00012812,2]
[337734210,1725994238009,-216.0,0.00012812,2]
[337734211,1725994238019,-546.175,0.00012812,2]
[337734212,1725994238030,-267.025,0.00012812,2]
[337734213,1725994238041,-190.924,0.00012812,2]
[337734214,1725994238050,-200.0,0.00012812,2]
[337734215,1725994238060,-155.14482605,0.00012822,2]
[337734216,1725994238070,-150.0,0.00012826,2]
[337734217,1725994238079,-150.0,0.00012844,2]
[337734218,1725994238089,-150.0,0.00012872,2]
[337734219,1725994238098,-500.0,0.00012877,2]
[337734220,1725994238109,-155.14482605,0.00012877,2]
[337734221,1725994238119,-162.12,0.0001289,2]
[337734222,1725994238132,-500.0,0.00012899,2]
[337734223,1725994238142,-500.0,0.00012899,2]
[337734224,1725994238154,-377.69758271,0.00012899,2]
[337734225,1725994238181,-122.30241729,0.00012899,2]
[337734226,1725994238190,-513.32354347,0.00012899,2]
[337734227,1725994238203,-122.46399807,0.00012899,2]
[337734228,1725994238215,-377.53600193,0.00012899,2]
[337734229,1725994238225,-500.0,0.00012899,2]
[337734230,1725994238236,-3282.76930656,0.00012899,2]
[337734231,1725994238248,-183486.84614841,0.000129,2]
[337734232,1725994238269,-1807.95309703,0.000129,2]
[337734233,1725994238280,-3391.02565311,0.000129,2]
[337734234,1725994238294,-8503.35368821,0.000129,2]
[337734237,1725994239745,-969.65529697,0.000129,2]
[337734238,1725994239756,-3090.0,0.000129,2]
[337734239,1725994239768,-397.95,0.000129,2]
[337734240,1725994239780,-998.486475,0.000129,2]
[337734241,1725994239847,-696.74938941,0.000129,2]
[337734242,1725994239858,-2864.3406501,0.000129,2]
[337734243,1725994239870,-1740.34166525,0.000129,2]
[337734244,1725994239881,-476.76195322,0.000129,2]
[337734245,1725994239891,-2383.28089997,0.000129,2]
[337734246,1725994239904,-91681.41340885,0.000129,2]
[337734247,1725994239916,-642.79791123,0.000129,2]
[337734248,1725994239942,-1458.91842534,0.000129,2]
[337734249,1725994239953,-34390.09549259,0.000129,2]
[337734250,1725994239965,-87390.48324477,0.000129,2]
[337734251,1725994239977,-64524.22854119,0.000129,2]
[337734252,1725994239988,-27053.90907254,0.000129,2]
[337734253,1725994239999,-11609.2,0.000129,2]
[337734254,1725994240011,-391.951146,0.000129,2]
[337734255,1725994240039,-2925.98626232,0.000129,2]
[337734256,1725994240051,-2110.66568425,0.000129,2]
[337734257,1725994240132,-6512.80077973,0.000129,2]
[337734258,1725994240144,-4171.15462368,0.000129,2]
[337734278,1725994242772,-151.614,0.00012812,2]
[337734279,1725994242782,-163.289,0.00012812,2]
[337734281,1725994242791,-321.59303942,0.000129,2]
[337734282,1725994242802,-502.11563888,0.000129,2]
[337734283,1725994242835,-1302.1840501,0.000129,2]
[337734284,1725994242895,-359.73856219,0.000129,2]
[337734287,1725994243356,-256791.24557288,0.000129,2]
[337734289,1725994243366,-167.49853668,0.000129,2]
[337734291,1725994243376,-18490.491,0.000129,2]
[337734293,1725994243385,-177.56180832,0.000129,2]
[337734295,1725994243394,-1841.90396763,0.000129,2]
[337734297,1725994243403,-150.0,0.000129,2]
[337734299,1725994243412,-427.66,0.000129,2]
[337734300,1725994243421,-1106.64,0.000129,2]
[337734302,1725994243435,-1081.09626064,0.000129,2]
[337734304,1725994243445,-427.66,0.000129,2]
[337734306,1725994243455,-155.14482605,0.00012959,2]
[337734308,1725994243464,-150.0,0.00012967,2]
[337734310,1725994243473,-700.0,0.0001297,2]
[337734312,1725994243482,-1300.0,0.0001297,2]
[337734313,1725994243491,-700.0,0.0001297,2]
[337734315,1725994243500,-162.12,0.0001299,2]
[337734317,1725994243509,-162.12,0.0001299,2]
[337734319,1725994243519,-162.12,0.0001299,2]
[337734321,1725994243528,-150.0,0.00012997,2]
[337734322,1725994243536,-283.19594664,0.00012999,2]
[337734324,1725994243545,-87897.64236976,0.00013,2]
[337734326,1725994243554,-200.0,0.00013,2]
[337734328,1725994243564,-889684.58914784,0.00013,2]
[337734330,1725994243575,-785.92072282,0.00013,2]
[337734332,1725994243587,-231428.00000016,0.00013,2]
[337734334,1725994243598,-440.9201824,0.00013,2]
[337734336,1725994243610,-1778.99,0.00013,2]
[337734338,1725994243621,-177805.24882099,0.00013,2]
[337734340,1725994243632,-1720.3100005,0.00013,2]
[337734342,1725994243643,-7300.0,0.00013,2]
[337734344,1725994243654,-580.44,0.00013,2]
[337734346,1725994243670,-2382.52120733,0.00013,2]
[337734348,1725994243682,-12722.77961447,0.00013,2]
[337734351,1725994243697,-5000.0,0.00013,2]
[337734353,1725994243708,-13779.17179148,0.00013,2]
[337734355,1725994243719,-328.04999985,0.00013,2]
[337734356,1725994243730,-5420.415,0.00013,2]
[337734522,1725994245773,-2985.11727615,0.000129,2]
[337734529,1725994245832,-749.22272385,0.000129,2]
[337734531,1725994245841,-283.19594663,0.00012999,2]
[337734533,1725994245850,-5737.87132951,0.00013,2]
[337734538,1725994245889,-1789.21928806,0.00013,2]
[337734540,1725994245900,-270.73600649,0.00013,2]
[337734542,1725994245912,-3121.61854213,0.00013,2]
[337734544,1725994245924,-1470.51803953,0.00013,2]
[337734547,1725994245935,-7290.30369597,0.00013,2]
[337734561,1725994246067,-5486.25292594,0.00013,2]
[337734563,1725994246080,-74600.46239154,0.00013,2]
[337734565,1725994246091,-58090.85517943,0.00013,2]
[337734568,1725994246105,-792.73224283,0.00013,2]
[337734572,1725994246140,-2289.91559988,0.00013,2]
[337734574,1725994246153,-656.37,0.00013,2]
[337735323,1725994263323,-297.134,0.00012812,2]
[337735324,1725994263347,-250.0,0.00012812,2]
[337735325,1725994263370,-402.26088523,0.00012873,2]
[337735326,1725994263393,-500.0,0.00012877,2]
[337735327,1725994263417,-150.0,0.00012999,2]
[337735328,1725994263813,500.0,0.00012899,2]
[337735329,1725994263842,205.34011188,0.00012899,2]
[337735330,1725994263869,230.85455327,0.00012899,2]
[337735331,1725994264268,187.968,0.00012822,2]
[337735332,1725994264357,500.0,0.00012873,2]
[337735333,1725994265182,262.2,0.00012822,2]
[337735334,1725994269859,263.892,0.00012822,2]
[337735335,1725994270179,250.0,0.00012822,2]
[337735336,1725994279082,175.01683303,0.00012873,2]
[337735337,1725994283489,170.443,0.00012822,2]
[337735338,1725994285634,201.24993196,0.000129,2]
[337735339,1725994286100,1227.93597842,0.000129,2]
[337735340,1725994288975,201.413,0.00012822,2]
[337735341,1725994291066,150.0,0.00019227,120]
[337735342,1725994292409,-44524.29170621,0.00013,2]
[337735343,1725994303484,278.5,0.00028,120]
[337735344,1725994316321,500.0,0.00010265,2]
[337735345,1725994335158,431.48,0.00010959,2]
[337735346,1725994349940,500.0,0.00028,120]
[337735347,1725994350220,500.0,0.00028,120]
[337735348,1725994350733,500.0,0.00028,120]
[337735349,1725994350910,500.0,0.00028,120]
[337735350,1725994351093,500.0,0.00028,120]
[337735351,1725994351279,500.0,0.00028,120]
[337735352,1725994351586,185.21152649,0.00028,120]
[337735353,1725994387278,500.0,0.00028,120]
[337735354,1725994387579,413.63891287,0.00028,120]
[337735355,1725994390121,564.78,0.00028,120]
[337735356,1725994392860,729.85,0.00028,120]
[337735357,1725994393182,729.85,0.00028,120]
[337735358,1725994393462,729.85,0.00028,120]
[337735359,1725994393747,729.85,0.00028,120]
[337735360,1725994394034,729.85,0.00028,120]
[337735361,1725994394298,729.85,0.00028,120]
[337735362,1725994394571,729.85,0.00028,120]
[337735363,1725994394854,729.85,0.00028,120]
[337735364,1725994395166,729.85,0.00028,120]
[337735365,1725994395453,729.85,0.00028,120]
[337735366,1725994395829,729.85,0.00028,120]
[337735367,1725994396102,729.85,0.00028,120]
[337735368,1725994396367,729.85,0.00028,120]
[337735369,1725994396659,729.85,0.00028,120]
[337735370,1725994396928,729.85,0.00028,120]
[337735371,1725994397316,729.85,0.00028,120]
[337735372,1725994397622,729.85,0.00028,120]
[337735373,1725994397883,729.85,0.00028,120]
[337735374,1725994398154,729.85,0.00028,120]
[337735375,1725994398538,729.85,0.00028,120]
[337735376,1725994398813,729.85,0.00028,120]
[337735377,1725994399109,729.85,0.00028,120]
[337735378,1725994399368,729.85,0.00028,120]
[337735379,1725994399885,729.8896,0.00028,120]
[337735380,1725994436558,622.35943139,0.00028,120]
[337735381,1725994442088,500.0,0.00028,120]
[337735382,1725994442356,500.0,0.00028,120]
[337735383,1725994442645,348.72,0.00028,120]
[337735384,1725994470532,150.0,0.00026963,120]
[337735385,1725994733237,153.8,0.00010175,2]
[337735386,1725994752814,263.12,0.00011233,2]
[337735387,1725995068178,500.0,0.00028,120]
[337735388,1725995068777,500.0,0.00028,120]
[337735389,1725995069028,500.0,0.00028,120]
[337735390,1725995069298,500.0,0.00028,120]
[337735391,1725995069573,156.56,0.00028,120]
[337735392,1725995099122,502.87659666,0.00028,120]
[337735393,1725995101601,500.0,0.00028,120]
[337735394,1725995101952,500.0,0.00028,120]
[337735395,1725995102225,500.0,0.00028,120]
[337735396,1725995102507,500.23869905,0.00028,120]
[337735397,1725995107579,505.74223506,0.00028,120]
[337735398,1725995109966,500.0,0.00028,120]
[337735399,1725995110234,500.0,0.00028,120]
[337735400,1725995110499,501.88080816,0.00028,120]
[337735401,1725995113308,500.0,0.00028,120]
[337735402,1725995113911,500.0,0.00028,120]
[337735403,1725995114173,575.65,0.00028,120]
[337735404,1725995119072,500.0,0.00028,120]
[337735405,1725995124801,500.0,0.00028,120]
[337735406,1725995125097,500.0,0.00028,120]
[337735407,1725995125668,500.0,0.00028,120]
[337735408,1725995125963,500.0,0.00028,120]
[337735409,1725995126370,500.0,0.00028,120]
[337735410,1725995126608,500.0,0.00028,120]
[337735411,1725995127341,500.0,0.00028,120]
[337735412,1725995127929,480.87881251,0.00028,120]
[337735413,1725995134938,500.0,0.00028,120]
[337735414,1725995135391,500.0,0.00028,120]
[337735415,1725995135659,532.45486777,0.00028,120]
[337735416,1725995139776,500.0,0.00028,120]
[337735417,1725995140283,500.0,0.00028,120]
[337735418,1725995143113,500.0,0.00028,120]
[337735419,1725995144014,151.72,0.00028,120]
[337735428,1725995156172,500.0,0.00028,120]
[337735429,1725995156454,500.20453114,0.00028,120]
[337735430,1725995164383,500.0,0.00028,120]
[337735431,1725995164694,500.0,0.00028,120]
[337735432,1725995165005,500.0,0.00028,120]
[337735433,1725995165324,500.0,0.00028,120]
[337735434,1725995165627,500.0,0.00028,120]
[337735435,1725995165970,500.0,0.00028,120]
[337735436,1725995166241,450.82487445,0.00028,120]
[337735437,1725995168728,346.12109268,0.00028,120]
[337735438,1725995169322,552.72,0.00028,120]
[337735439,1725995169633,552.72,0.00028,120]
[337735440,1725995170227,552.72,0.00028,120]
[337735441,1725995171283,552.72,0.00028,120]
[337735442,1725995171570,552.72,0.00028,120]
[337735443,1725995171933,552.72,0.00028,120]
[337735444,1725995172188,552.72,0.00028,120]
[337735445,1725995172455,552.72,0.00028,120]
[337735446,1725995172710,552.72,0.00028,120]
[337735447,1725995172955,552.72,0.00028,120]
[337735448,1725995173427,552.72,0.00028,120]
[337735449,1725995173536,552.72,0.00028,120]
[337735450,1725995173842,552.72,0.00028,120]
[337735451,1725995174108,552.72,0.00028,120]
[337735452,1725995174567,552.72,0.00028,120]
[337735453,1725995174816,552.72,0.00028,120]
[337735454,1725995175083,552.72,0.00028,120]
[337735455,1725995175362,552.72,0.00028,120]
[337735456,1725995175785,552.72,0.00028,120]
[337735457,1725995176046,552.72,0.00028,120]
[337735458,1725995176445,552.72,0.00028,120]
[337735459,1725995176710,552.72,0.00028,120]
[337735460,1725995176983,552.72,0.00028,120]
[337735461,1725995177279,552.82,0.00028,120]
[337735462,1725995197939,500.0,0.00028,120]
[337735463,1725995198205,500.0,0.00028,120]
[337735464,1725995198582,500.0,0.00028,120]
[337735465,1725995228252,500.0,0.00028,120]
[337735466,1725995228515,619.71274139,0.00028,120]
[337735467,1725995244847,293.53380808,0.00028,120]
[337735476,1725995254307,500.0,0.00028,120]
[337735563,1725995276645,500.0,0.00028,120]
[337735564,1725995279357,153.8,0.00010112,2]
[337735565,1725995327644,750.0,0.00011,2]
[337735566,1725995332814,500.0,0.00028,120]
[337735567,1725995334795,500.0,0.00028,120]
[337735568,1725995336746,440.68633011,0.00028,120]
[337735569,1725995349318,500.0,0.00028,120]
[337735570,1725995403040,1050.0,0.00011,2]
[337735606,1725995432180,-250.0,0.00012016,2]
[337735607,1725995432189,-156.48,0.00012033,2]
[337735609,1725995432199,-43.96936041,0.00012047,2]
[337735611,1725995432210,-206.03063959,0.00012047,2]
[337735613,1725995432219,-598.75976191,0.00012061,2]
[337735615,1725995432231,-4184.13163664,0.00012061,2]
[337735617,1725995432240,-800.0,0.00012071,2]
[337735620,1725995432249,-200.0,0.00012187,2]
[337735623,1725995432259,-243.52,0.00012188,2]
[337735626,1725995432268,-236.1,0.000122,2]
[337735628,1725995432277,-300.0,0.00012499,2]
[337735630,1725995432286,-606.749603,0.000125,2]
[337735633,1725995432295,-996.3,0.000125,2]
[337735636,1725995432305,-784.64,0.000125,2]
[337735638,1725995432313,-150.0,0.00012718,2]
[337735640,1725995432323,-1851.63722277,0.0001282,2]
[337735642,1725995432334,-878.30190677,0.0001282,2]
[337735644,1725995432344,-41.73087046,0.0001282,2]
[337735646,1725995432354,-150.237,0.00012822,2]
[337735648,1725995432363,-363.506,0.00012822,2]
[337735650,1725995432372,-649.52612954,0.0001287,2]
[337735652,1725995432385,-400.36477046,0.0001287,2]
[337735653,1725995432394,-500.0,0.00012877,2]
[337735655,1725995432403,-150.0,0.00012899,2]
[337735657,1725995432412,-166.06501287,0.000129,2]
[337735659,1725995432421,-3168.16021667,0.000129,2]
[337735661,1725995432432,-6201.47968333,0.000129,2]
[337735663,1725995432442,-155.94268703,0.000129,2]
[337735665,1725995432455,-186.22651356,0.000129,2]
[337735667,1725995432464,-166.39250321,0.000129,2]
[337735669,1725995432473,-818.62398562,0.000129,2]
[337735671,1725995432484,-14646.36657483,0.000129,2]
[337735672,1725995432494,-720.73084044,0.000129,2]
[337735673,1725995432503,-201.639,0.00012973,2]
[337735674,1725995432512,-343.80483607,0.00012973,2]
[337735675,1725995432523,-502.07381489,0.00012973,2]
[337735676,1725995432534,-10675.28169532,0.00012986,2]
[337735677,1725995432544,-163.29,0.0001299,2]
[337735678,1725995432554,-13094.1534187,0.00012996,2]
[337735679,1725995432564,-557.99243863,0.00012999,2]
[337735680,1725995432575,-69806.24187948,0.00013,2]
[337735681,1725995437919,-534.4333347,0.00013,2]
[337735682,1725995438004,-468.7895256,0.00013,2]
[337735683,1725995438015,-9790.95351866,0.00013,2]
[337735684,1725995438024,-543363.94291636,0.00013,2]
[337735685,1725995438048,-1863.758963,0.00013,2]
[337735686,1725995438059,-5020.75744016,0.00013,2]
[337735687,1725995438088,-483.7355491,0.00013,2]
[337735688,1725995438220,-2074.28288858,0.00013,2]
[337735695,1725995439966,-1444.0,0.00013,2]
[337735697,1725995439979,-746.29045264,0.00013,2]
[337735698,1725995440042,-1198.510641,0.00013,2]
[337735699,1725995440103,-2399.27999993,0.00013,2]
[337735700,1725995440279,-1293.78903778,0.00013,2]
[337735701,1725995440291,-2074.542965,0.00013,2]
[337735702,1725995440302,-1638.38842321,0.00013,2]
[337735709,1725995442939,-4041.2497125,0.00013,2]
[337735710,1725995442980,-344.59647188,0.00013,2]
[337735711,1725995443018,-2924.56237847,0.00013,2]
[337735712,1725995443029,-2551.14997692,0.00013,2]
[337735713,1725995443069,-391.03214566,0.00013,2]
[337735714,1725995443080,-614.29174979,0.00013,2]
[337735715,1725995443110,-8823.99346952,0.00013,2]
[337735716,1725995444568,-3972.09929284,0.00013,2]
[337735717,1725995444579,-9967.24778292,0.00013,2]
[337735718,1725995444590,-490913.99999984,0.00013,2]
[337735719,1725995444600,-304.4341043,0.00013,2]
[337735720,1725995444611,-1377.53454,0.00013,2]
[337735721,1725995444622,-1118.97,0.00013,2]
[337735722,1725995444635,-17362.55801782,0.00013,2]
[337735723,1725995444646,-2248.95674392,0.00013,2]
[337735749,1725995446218,-1321.4022825,0.00013,2]
[337735750,1725995446230,-1869.3662922,0.00013,2]
[337735751,1725995446241,-1240.6564181,0.00013,2]
[337735752,1725995446251,-121883.2041175,0.00013,2]
[337735753,1725995446262,-3564.74835214,0.00013,2]
[337735754,1725995446274,-260.0,0.00013,2]
[337735755,1725995446284,-51882.84223985,0.00013,2]
[337735756,1725995446469,-403.53386833,0.00013,2]
[337735757,1725995446481,-611.804,0.00013,2]
[337735758,1725995446492,-1040.67985396,0.00013,2]
[337735759,1725995446504,-530.6,0.00013,2]
[337735760,1725995446514,-602.39458916,0.00013,2]
[337735761,1725995446525,-6372.4344052,0.00013,2]
[337735762,1725995446536,-3561.05737982,0.00013,2]
[337735776,1725995557550,500.0,0.00028,120]
[337735777,1725995557879,500.0,0.00028,120]
[337735778,1725995558143,294.56,0.00028,120]
[337735779,1725995564544,627.3017672,0.00028,120]
[337735780,1725995585963,500.0,0.00028,120]
[337735781,1725995586231,500.0,0.00028,120]
[337735782,1725995586559,380.86,0.00028,120]
[337735783,1725995591429,601.4,0.00028,120]
[337735784,1725995593889,500.0,0.00028,120]
[337735785,1725995601814,430.0,0.00028,120]
[337735786,1725995605917,500.0,0.00028,120]
[337735787,1725995606189,500.0,0.00028,120]
[337735788,1725995606459,415.7422881,0.00028,120]
[337735789,1725995620879,500.0,0.00028,120]
[337735790,1725995621081,500.0,0.00028,120]
[337735791,1725995621148,500.0,0.00028,120]
[337735792,1725995621365,500.0,0.00028,120]
[337735793,1725995621435,337.12,0.00028,120]
[337735794,1725995621685,500.0,0.00028,120]
[337735795,1725995622340,500.0,0.00028,120]
[337735796,1725995622382,500.0,0.00028,120]
[337735797,1725995622508,639.46,0.00028,120]
[337735798,1725995652985,500.0,0.00028,120]
[337735799,1725995653272,176.06,0.00028,120]
[337735800,1725995657370,500.0,0.00028,120]
[337735801,1725995657639,500.0,0.00028,120]
[337735802,1725995657927,260.24,0.00028,120]
[337735803,1725995673162,500.0,0.00028,120]
[337735804,1725995673433,500.0,0.00028,120]
[337735805,1725995673707,344.3,0.00028,120]
[337735806,1725995675881,500.0,0.00028,120]
[337735807,1725995676184,162.09,0.00028,120]
[337735808,1725995678624,500.0,0.00028,120]
[337735809,1725995678916,231.77,0.00028,120]
[337735810,1725995681686,500.0,0.00028,120]
[337735811,1725995681950,500.0,0.00028,120]
[337735812,1725995682246,582.06,0.00028,120]
[337735813,1725995688913,543.6,0.00028,120]
[337735814,1725995744687,177.4435112,0.00028,120]
[337735815,1725995754197,18403.08273149,0.00011977,2]
[337735816,1725995803341,151.81,0.00010055,2]
[337735817,1725995858502,250.0,0.00011927,2]
[337735818,1725995886563,1370.89,0.00011923,2]
[337735819,1725995922126,263.11,0.00011923,2]
[337735820,1725996014946,250.0,0.00011876,2]
[337735821,1725996020039,500.0,0.00028,120]
[337735822,1725996081935,156.68,0.00010959,2]
[337735823,1725996126370,2989.29,0.00011906,2]
[337735824,1725996172987,4345.02,0.00011928,2]
[337735825,1725996254102,500.0,0.00028,120]
[337735826,1725996271576,250.0,0.00011959,2]
[337735827,1725996315558,150.0,0.00011688,2]
[337735832,1725996371901,194.81,0.00011921,2]
[337735879,1725996494922,1000.0,0.00011919,2]
[337735901,1725996631276,151.81,0.00010007,2]
[337735910,1725996632090,-159.64,0.00012007,2]
[337735911,1725996632100,-199.02,0.00012017,2]
[337735912,1725996632110,-200.0,0.00012077,2]
[337735913,1725996632119,-910.15438031,0.00012129,2]
[337735914,1725996632323,-159.64,0.0001217,2]
[337735915,1725996632333,-159.64,0.0001217,2]
[337735916,1725996632343,-150.0,0.00012179,2]
[337735917,1725996632352,-16945.47876374,0.0001218,2]
[337735918,1725996632364,-404.4999995,0.0001218,2]
[337735919,1725996632375,-312.052,0.0001218,2]
[337735920,1725996632385,-1160.00238867,0.0001218,2]
[337735921,1725996632396,-3282.66146261,0.0001218,2]
[337735922,1725996632408,-10788.88930125,0.0001218,2]
[337735923,1725996632419,-6200.37173994,0.0001218,2]
[337735924,1725996632430,-3460.2277089,0.0001218,2]
[337735925,1725996632441,-505.95034743,0.0001218,2]
[337735926,1725996632452,-288.90501072,0.0001218,2]
[337735927,1725996632463,-7552.79375226,0.0001218,2]
[337735928,1725996632478,-355.41834579,0.0001218,2]
[337735929,1725996632490,-9770.53581346,0.0001218,2]
[337735930,1725996632500,-212.49,0.000122,2]
[337735931,1725996632509,-1011.26,0.000125,2]
[337735932,1725996632519,-389.37570313,0.00012617,2]
[337735933,1725996632528,-912.69,0.00012716,2]
[337735934,1725996632538,-499.99,0.00012725,2]
[337735935,1725996632548,-150.0,0.00012768,2]
[337735936,1725996632557,-3723.67,0.00012774,2]
[337735937,1725996632567,-427.66,0.000128,2]
[337735938,1725996632576,-427.66,0.000128,2]
[337735939,1725996632585,-427.66,0.000128,2]
[337735940,1725996632595,-500.0,0.0001287,2]
[337735941,1725996632605,-150.0,0.00012875,2]
[337735942,1725996632615,-500.0,0.00012877,2]
[337735943,1725996632624,-166.06501281,0.000129,2]
[337735944,1725996632633,-853.57,0.000129,2]
[337735945,1725996632642,-2895.7165,0.000129,2]
[337735946,1725996632651,-1500.0,0.000129,2]
[337735947,1725996632660,-480.48722696,0.000129,2]
[337735948,1725996632670,-1703.0,0.000129,2]
[337735949,1725996632679,-545.74932374,0.000129,2]
[337735950,1725996632688,-3143.70047368,0.000129,2]
[337735951,1725996632697,-1284.11537886,0.000129,2]
[337735952,1725996632706,-5858.0,0.00012918,2]
[337735953,1725996632715,-188.121,0.00012918,2]
[337735954,1725996632724,-1145.0,0.00012918,2]
[337735955,1725996632733,-9307.0,0.00012918,2]
[337735956,1725996632742,-150.0,0.00012945,2]
[337735957,1725996632752,-1096.37748728,0.00012947,2]
[337735958,1725996632761,-160.40668514,0.00012973,2]
[337735959,1725996632773,-157.09,0.0001299,2]
[337735960,1725996632783,-6046.9578512,0.00012996,2]
[337735961,1725996632792,-1425.0170422,0.00012996,2]
[337735963,1725996632801,-500.0,0.00012999,2]
[337735965,1725996632810,-159.58659524,0.00012999,2]
[337735966,1725996632820,-207.76909795,0.00012999,2]
[337735968,1725996632829,-496.0397505,0.00012999,2]
[337735971,1725996632843,-3.9602495,0.00012999,2]
[337735973,1725996632852,-344.00790125,0.00012999,2]
[337735976,1725996632874,-250.0,0.00012999,2]
[337735978,1725996632886,-392.16304759,0.00012999,2]
[337735980,1725996632897,-9617.836632,0.00012999,2]
[337735981,1725996632906,-4531.0,0.00012999,2]
[337735982,1725996632915,-70591.56507919,0.00013,2]
[337735984,1725996632925,-104132.62810755,0.00013,2]
[337735986,1725996632940,-919.70999,0.00013,2]
[337735998,1725996638129,-759.24899239,0.00012918,2]
[337735999,1725996638141,-317.75100761,0.00012918,2]
[337736000,1725996638151,-2502.91502467,0.00013,2]
[337736001,1725996638165,-1682.74138119,0.00013,2]
[337736002,1725996638176,-874.83664324,0.00013,2]
[337736003,1725996638189,-591.25,0.00013,2]
[337736004,1725996638201,-325.88,0.00013,2]
[337736005,1725996638213,-436.24505873,0.00013,2]
[337736006,1725996638326,-4967.8206643,0.00013,2]
[337736007,1725996638462,-35510.07735685,0.00013,2]
[337736008,1725996638473,-1656.07732759,0.00013,2]
[337736009,1725996638485,-18380.47787291,0.00013,2]